fUST/lending_fUST_20240414
["ID","MTS","AMOUNT","RATE_DAILY","PERIOD"]
[322554393,1713051044661,-500.0,0.00054794,120]
[322554394,1713051044670,-500.0,0.00054794,120]
[322554395,1713051044679,-500.0,0.00054794,120]
[322554396,1713051044688,-500.0,0.00054794,120]
[322554397,1713051044697,-457.91732347,0.00054794,120]
[322554398,1713051044706,-463.26359933,0.00054794,120]
[322554399,1713051044716,-197.436547,0.00054794,7]
[322554400,1713051044726,-197.436547,0.00054794,7]
[322554401,1713051044812,-500.0,0.00054794,120]
[322554402,1713051044822,-155.61241596,0.00054794,120]
[322554403,1713051044833,-500.0,0.00054794,120]
[322554404,1713051044843,-197.436547,0.00054794,7]
[322554405,1713051044852,-197.436547,0.00054794,7]
[322554406,1713051044861,-500.0,0.00054794,120]
[322554407,1713051044871,-500.0,0.00054794,120]
[322554408,1713051044882,-500.0,0.00054794,120]
[322554409,1713051044898,-500.0,0.00054794,120]
[322554410,1713051044908,-500.0,0.00054794,120]
[322554411,1713051044918,-500.0,0.00054794,120]
[322554412,1713051044928,-1371.3,0.00054794,120]
[322554413,1713051044938,-1630.81646,0.00054794,7]
[322554414,1713051044948,-500.0,0.00054794,120]
[322554415,1713051044958,-1630.81646,0.00054794,7]
[322554416,1713051044968,-1630.81646,0.00054794,7]
[322554417,1713051044978,-1630.81646,0.00054794,7]
[322554418,1713051044988,-503.33800379,0.00054794,120]
[322554419,1713051044998,-500.0,0.00054794,120]
[322554420,1713051045008,-500.0,0.00054794,120]
[322554421,1713051045018,-500.0,0.00054794,120]
[322554422,1713051045028,-500.0,0.00054794,120]
[322554423,1713051045039,-1563.08,0.00054794,120]
[322554424,1713051045048,-500.0,0.00054794,120]
[322554425,1713051045058,-500.0,0.00054794,120]
[322554426,1713051045067,-500.0,0.00054794,120]
[322554427,1713051045076,-500.0,0.00054794,120]
[322554428,1713051045086,-197.06902276,0.00054794,120]
[322554429,1713051045096,-500.0,0.00054794,120]
[322554430,1713051045105,-500.0,0.00054794,120]
[322554431,1713051045115,-500.0,0.00054794,120]
[322554432,1713051045125,-500.0,0.00054794,120]
[322554433,1713051045140,-500.0,0.00054794,120]
[322554434,1713051045149,-500.0,0.00054794,120]
[322554435,1713051045159,-500.0,0.00054794,120]
[322554436,1713051045169,-151.0,0.00054794,7]
[322554437,1713051045179,-151.0,0.00054794,7]
[322554438,1713051045189,-606.69573565,0.00054794,120]
[322554439,1713051045199,-500.0,0.00054794,120]
[322554440,1713051045209,-500.0,0.00054794,120]
[322554441,1713051045218,-1429.7,0.00054794,120]
[322554442,1713051045228,-151.0,0.00054794,7]
[322554443,1713051045237,-151.0,0.00054794,7]
[322554444,1713051045246,-500.0,0.00054794,120]
[322554445,1713051045256,-505.95,0.00054794,120]
[322554446,1713051045265,-500.0,0.00054794,120]
[322554447,1713051045274,-610.21924403,0.00054794,120]
[322554448,1713051045284,-1447.72,0.00054794,120]
[322554449,1713051045293,-2818.96,0.00054794,120]
[322554450,1713051045303,-500.0,0.00054794,120]
[322554451,1713051045312,-151.0,0.00054794,7]
[322554452,1713051045321,-151.0,0.00054794,7]
[322554453,1713051045330,-500.0,0.00054794,120]
[322554454,1713051045340,-151.0,0.00054794,7]
[322554455,1713051045349,-151.0,0.00054794,7]
[322554456,1713051045358,-3317.936567,0.00054794,7]
[322554457,1713051045367,-3317.936567,0.00054794,7]
[322554458,1713051045376,-500.0,0.00054794,120]
[322554459,1713051045389,-1430.22,0.00054794,120]
[322554460,1713051045398,-1430.22,0.00054794,120]
[322554461,1713051045407,-1430.22,0.00054794,120]
[322554462,1713051045417,-1430.22,0.00054794,120]
[322554463,1713051045425,-1430.22,0.00054794,120]
[322554464,1713051045434,-1430.22,0.00054794,120]
[322554465,1713051045443,-1430.22,0.00054794,120]
[322554466,1713051045452,-1430.22,0.00054794,120]
[322554467,1713051045462,-1430.22,0.00054794,120]
[322554468,1713051045470,-1430.22,0.00054794,120]
[322554469,1713051045479,-3317.936567,0.00054794,7]
[322554470,1713051045489,-1430.22,0.00054794,120]
[322554471,1713051045498,-3317.936567,0.00054794,7]
[322554472,1713051045510,-1430.22,0.00054794,120]
[322554473,1713051045519,-500.0,0.00054794,120]
[322554474,1713051045528,-1430.22,0.00054794,120]
[322554475,1713051045537,-1430.22,0.00054794,120]
[322554476,1713051045547,-2500.0,0.00054794,120]
[322554477,1713051045556,-1430.22,0.00054794,120]
[322554478,1713051045565,-1430.22,0.00054794,120]
[322554479,1713051045574,-1430.22,0.00054794,120]
[322554480,1713051045583,-1430.22,0.00054794,120]
[322554481,1713051045593,-1430.22,0.00054794,120]
[322554482,1713051045604,-1430.22,0.00054794,120]
[322554483,1713051045613,-1430.22,0.00054794,120]
[322554484,1713051045622,-1430.22,0.00054794,120]
[322554485,1713051045634,-1430.22,0.00054794,120]
[322554486,1713051045644,-500.0,0.00054794,120]
[322554487,1713051045653,-1430.44933591,0.00054794,120]
[322554488,1713051045662,-2180.79,0.00054794,120]
[322554489,1713051045671,-500.0,0.00054794,120]
[322554490,1713051045680,-500.0,0.00054794,120]
[322554491,1713051045690,-447.73162758,0.00054794,120]
[322554492,1713051045699,-1885.82,0.00054794,120]
[322554493,1713051045707,-500.0,0.00054794,120]
[322554494,1713051045717,-500.0,0.00054794,120]
[322554495,1713051045726,-500.0,0.00054794,120]
[322554496,1713051045735,-500.0,0.00054794,120]
[322554497,1713051045745,-7518.1,0.00054794,120]
[322554498,1713051045755,-500.0,0.00054794,120]
[322554499,1713051045765,-500.0,0.00054794,120]
[322554500,1713051045776,-500.0,0.00054794,120]
[322554501,1713051045786,-500.31148801,0.00054794,120]
[322554502,1713051045795,-526.32,0.00054794,120]
[322554503,1713051045804,-500.0,0.00054794,120]
[322554504,1713051045814,-1033.12,0.00054794,120]
[322554505,1713051045823,-500.0,0.00054794,120]
[322554506,1713051045832,-500.0,0.00054794,120]
[322554507,1713051045843,-500.0,0.00054794,7]
[322554508,1713051045853,-554.108163,0.00054794,7]
[322554509,1713051045864,-500.0,0.00054794,120]
[322554510,1713051045873,-554.108163,0.00054794,7]
[322554511,1713051045887,-230.127448,0.00054794,7]
[322554512,1713051045896,-230.127448,0.00054794,7]
[322554513,1713051045905,-3886.15,0.00054794,120]
[322554514,1713051045916,-899.03,0.00054794,120]
[322554515,1713051045925,-500.0,0.00054794,120]
[322554516,1713051045934,-554.108163,0.00054794,7]
[322554517,1713051045943,-500.0,0.00054794,120]
[322554518,1713051045953,-554.108163,0.00054794,7]
[322554519,1713051045963,-230.127448,0.00054794,7]
[322554520,1713051045973,-230.127448,0.00054794,7]
[322554521,1713051045983,-1076.87,0.00054794,120]
[322554522,1713051045993,-501.37377778,0.00054794,120]
[322554523,1713051046002,-2797.22,0.00054794,120]
[322554524,1713051046012,-500.0,0.00054794,120]
[322554525,1713051046020,-500.0,0.00054794,120]
[322554526,1713051046030,-2051.47,0.00054794,120]
[322554527,1713051046039,-500.0,0.00054794,120]
[322554529,1713051046048,-500.0,0.00054794,120]
[322554530,1713051046057,-1199.0,0.00054794,120]
[322554531,1713051046066,-509.53797973,0.00054794,120]
[322554533,1713051046075,-500.0,0.00054794,120]
[322554535,1713051046084,-1074.8,0.00054794,120]
[322554537,1713051046093,-260.33821339,0.00054794,120]
[322554539,1713051046103,-500.0,0.00054794,120]
[322554541,1713051046112,-500.0,0.00054794,120]
[322554543,1713051046122,-628.94,0.00054794,120]
[322554545,1713051046134,-500.0,0.00054794,120]
[322554555,1713051046205,-500.0,0.00054794,120]
[322554557,1713051046214,-500.0,0.00054794,120]
[322554559,1713051046223,-151.0,0.00054794,7]
[322554561,1713051046232,-151.0,0.00054794,7]
[322554562,1713051046242,-500.0,0.00054794,120]
[322554563,1713051046252,-500.0,0.00054794,120]
[322554565,1713051046261,-221.02911687,0.00054794,120]
[322554566,1713051046271,-500.0,0.00054794,120]
[322554568,1713051046280,-500.0,0.00054794,120]
[322554571,1713051046293,-345.51279381,0.00054794,120]
[322554572,1713051046302,-500.0,0.00054794,120]
[322554574,1713051046311,-500.0,0.00054794,120]
[322554576,1713051046320,-500.0,0.00054794,120]
[322554577,1713051046330,-500.0,0.00054794,120]
[322554578,1713051046339,-505.69584585,0.00054794,120]
[322554579,1713051046348,-500.0,0.00054794,120]
[322554581,1713051046359,-500.0,0.00054794,120]
[322554582,1713051046369,-1211.28,0.00054794,120]
[322554584,1713051046379,-500.0,0.00054794,120]
[322554586,1713051046393,-151.0,0.00054794,7]
[322554588,1713051046404,-3229.93,0.00054794,120]
[322554590,1713051046414,-151.0,0.00054794,7]
[322554591,1713051046425,-500.0,0.00054794,65]
[322554594,1713051046437,-500.0,0.00054794,60]
[322554595,1713051046448,-87.34710277,0.00054794,120]
[322554600,1713051046483,-113.84364894,0.00054794,120]
[322554602,1713051046493,-500.0,0.00054794,120]
[322554604,1713051046503,-500.0,0.00054794,120]
[322554606,1713051046513,-500.0,0.00054794,120]
[322554608,1713051046527,-508.54822273,0.00054794,120]
[322554610,1713051046536,-500.0,0.00054794,120]
[322554612,1713051046545,-1367.89,0.00054794,120]
[322554614,1713051046555,-500.65378748,0.00054794,120]
[322554616,1713051046565,-500.0,0.00054794,120]
[322554618,1713051046574,-500.0,0.00054794,120]
[322554620,1713051046583,-151.0,0.00054794,7]
[322554622,1713051046592,-151.0,0.00054794,7]
[322554624,1713051046602,-500.0,0.00054794,120]
[322554626,1713051046612,-1026.48,0.00054794,120]
[322554628,1713051046621,-631.38,0.00054794,120]
[322554630,1713051046632,-151.0,0.00054794,7]
[322554632,1713051046645,-151.0,0.00054794,7]
[322554634,1713051046654,-11047.77508452,0.00054794,120]
[322554636,1713051046667,-579.429,0.00054794,120]
[322554638,1713051046707,-8030.07018,0.00054794,120]
[322554640,1713051046718,-7770.399057,0.00054794,120]
[322554648,1713051046785,-1171.80878359,0.00054794,120]
[322554655,1713051046852,-6943.25789489,0.00054794,120]
[322554656,1713051046861,-500.0,0.00054794,120]
[322554657,1713051046871,-151.0,0.00054794,7]
[322554658,1713051046880,-118.97713277,0.00054794,120]
[322554659,1713051046898,-381.02286723,0.00054794,120]
[322554660,1713051046907,-151.0,0.00054794,7]
[322554661,1713051046916,-500.0,0.00054794,120]
[322554662,1713051046925,-151.0,0.00054794,7]
[322554663,1713051046935,-243.79793,0.00054794,7]
[322554664,1713051046943,-2841.35,0.00054794,120]
[322554665,1713051046953,-500.0,0.00054794,120]
[322554666,1713051046963,-91.67219933,0.00054794,120]
[322554667,1713051047772,-158.89220139,0.00043483,31]
[322554668,1713051047782,-410.89100692,0.00043483,31]
[322554669,1713051047792,-722.88737732,0.00054793,2]
[322554879,1713051060021,632.76769938,0.00027267,2]
[322554881,1713051134151,165.479367,0.00027397,2]
[322554935,1713051939795,-154.87609912,0.00027264,2]
[322554936,1713051939816,-1405.68536465,0.00027265,2]
[322554938,1713052038107,-300.0,0.00027264,2]
[322554939,1713052038128,-300.0,0.00027264,2]
[322554940,1713052038148,-154.87609912,0.00027265,2]
[322554941,1713052038264,-195.17541357,0.00027267,2]
[322554942,1713052153127,-156.67867466,0.00027265,2]
[322554943,1713052153148,-89.56148309,0.00027267,2]
[322554944,1713052153169,-175.748618,0.00027397,2]
[322554945,1713052153193,-175.967826,0.00027397,2]
[322554946,1713052153216,-1014.05805107,0.00030297,4]
[322554947,1713052159083,-200.0,0.00033108,30]
[322554948,1713052159103,-465.13392178,0.00034999,4]
[322554949,1713052159123,-596.67479795,0.00035,2]
[322554950,1713052159142,-328.91708188,0.00035311,4]
[322554951,1713052159163,-150.91211111,0.00035312,2]
[322554953,1713052182218,-2199.510348,0.00037262,120]
[322554993,1713052232532,-465.13392178,0.00035311,4]
[322554995,1713052232541,-596.67479795,0.00035311,2]
[322554996,1713052232550,-7.68898189,0.00035312,2]
[322554997,1713052232560,-167.82893236,0.000369,8]
[322554998,1713052232570,-166.969874,0.00036913,2]
[322554999,1713052232579,-298.32644037,0.0003692,4]
[322555000,1713052232589,-340.35316984,0.0003692,4]
[322555001,1713052232598,-154.87609912,0.0003692,4]
[322555002,1713052232607,-155.18509041,0.00036921,4]
[322555003,1713052232618,-400.0,0.00036921,2]
[322555004,1713052232628,-24900.0,0.00036922,2]
[322555005,1713052232639,-2045.13777758,0.00037,2]
[322555006,1713052232656,-1014.05805107,0.00037262,4]
[322555007,1713052232680,-1060.17707225,0.00039343,2]
[322555008,1713052232690,-10603.9228,0.00039993,30]
[322555009,1713052232701,-155.11766014,0.0004,15]
[322555010,1713052232711,-1407.30715224,0.0004,4]
[322555011,1713052232721,-560.0,0.00040613,3]
[322555012,1713052232730,-1061.68591961,0.00041,4]
[322555013,1713052232741,-166.969874,0.00041945,2]
[322555014,1713052232754,-2199.510348,0.00043473,120]
[322555015,1713052232765,-155.61241596,0.00044372,4]
[322555016,1713052232774,-185.0,0.00044674,3]
[322555017,1713052232784,-8524.31651613,0.00045,120]
[322555018,1713052232794,-58.62012006,0.000459,4]
[322555019,1713052232809,-96.25597906,0.000459,4]
[322555020,1713052232818,-186.0,0.00047,90]
[322555021,1713052232828,-304.32617215,0.00048864,7]
[322555022,1713052232838,-187.0,0.00048904,90]
[322555023,1713052232848,-3374.50106562,0.00049,120]
[322555024,1713052232858,-150.0,0.00049,68]
[322555025,1713052233076,-1000.0,0.00049028,7]
[322555026,1713052233087,-1000.0,0.00049087,7]
[322555027,1713052233097,-1000.0,0.00049168,7]
[322555028,1713052233107,-2199.510348,0.00049683,120]
[322555029,1713052233118,-1200.0,0.00049861,4]
[322555030,1713052233127,-154.87609912,0.0005,30]
[322555031,1713052233139,-339.05167979,0.0005111,120]
[322555032,1713052233149,-6866.84560241,0.00051111,2]
[322555085,1713052237979,-62488.74319952,0.00051111,2]
[322555086,1713052237989,-179.94161688,0.000519,2]
[322555088,1713052237998,-1500.0,0.00052,120]
[322555091,1713052238014,-166.722842,0.00052761,2]
[322555093,1713052238023,-154.11492578,0.00052798,60]
[322555094,1713052238032,-179.94161688,0.00052831,2]
[322555096,1713052238042,-153.87344272,0.0005307,60]
[322555098,1713052238052,-153.87344272,0.00053108,60]
[322555100,1713052238061,-153.87344272,0.00053274,60]
[322555102,1713052238070,-306.0,0.00053478,2]
[322555104,1713052238080,-151.30654139,0.00053543,60]
[322555106,1713052238090,-151.30654139,0.00053698,60]
[322555109,1713052238100,-179.94161688,0.00053763,2]
[322555111,1713052238110,-1500.0,0.00054,120]
[322555113,1713052238120,-153.87344272,0.00054009,60]
[322555114,1713052238130,-158.70213722,0.00054016,60]
[322555117,1713052238140,-156.97212421,0.00054246,3]
[322555119,1713052238152,-179.94161688,0.00054694,2]
[322555120,1713052238162,-168.7206,0.000547,2]
[322555123,1713052238173,-155.04639008,0.00054792,4]
[322555125,1713052238182,-988.14474534,0.00054792,4]
[322555127,1713052238191,-889.30553107,0.00054792,4]
[322555129,1713052238200,-154.92253873,0.00054792,2]
[322555131,1713052238210,-6953.91981241,0.00054792,4]
[322555133,1713052238219,-309.61299072,0.00054792,4]
[322555135,1713052238228,-1634.19612771,0.00054792,4]
[322555137,1713052238237,-310.18252693,0.00054792,2]
[322555139,1713052238247,-1926.29418595,0.00054793,4]
[322555141,1713052238263,-155.06185759,0.00054793,2]
[322555143,1713052238272,-297.45553492,0.00054793,4]
[322555145,1713052238282,-167.17702244,0.00054793,4]
[322555147,1713052238291,-155.06234485,0.00054793,4]
[322555149,1713052238300,-376.57140374,0.00054793,120]
[322555151,1713052238309,-505.64234481,0.00054793,120]
[322555152,1713052238318,-209.07180052,0.00054793,120]
[322555154,1713052238328,-152.35664233,0.00054793,120]
[322555155,1713052238337,-358.41340596,0.00054793,120]
[322555157,1713052238346,-477.51299887,0.00054793,120]
[322555159,1713052238355,-647.03,0.00054793,7]
[322555161,1713052238365,-647.03,0.00054793,7]
[322555163,1713052238374,-647.03,0.00054793,7]
[322555165,1713052238384,-647.03,0.00054793,7]
[322555167,1713052238393,-647.03,0.00054793,7]
[322555169,1713052238402,-44487.55031012,0.00054794,61]
[322555171,1713052238411,-500.0,0.00054794,120]
[322555173,1713052238420,-500.0,0.00054794,120]
[322555175,1713052238432,-154.93802479,0.00054794,120]
[322555177,1713052238441,-248.9250752,0.00054794,120]
[322555179,1713052238450,-500.0,0.00054794,120]
[322555181,1713052238459,-500.0,0.00054794,120]
[322555183,1713052238468,-500.0,0.00054794,7]
[322555185,1713052238479,-500.0,0.00054794,120]
[322555187,1713052238487,-560.20467555,0.00054794,120]
[322555189,1713052238496,-500.0,0.00054794,120]
[322555190,1713052238507,-591.66921232,0.00054794,120]
[322555192,1713052238516,-500.0,0.00054794,120]
[322555194,1713052238525,-563.84576789,0.00054794,120]
[322555196,1713052238534,-150.79594025,0.00054794,120]
[322555198,1713052238543,-500.0,0.00054794,120]
[322555200,1713052238552,-500.0,0.00054794,120]
[322555202,1713052238560,-500.0,0.00054794,120]
[322555204,1713052238570,-509.02229225,0.00054794,120]
[322555206,1713052238579,-500.0,0.00054794,120]
[322555208,1713052238588,-500.0,0.00054794,120]
[322555210,1713052238597,-500.0,0.00054794,120]
[322555212,1713052238606,-500.0,0.00054794,120]
[322555214,1713052238615,-500.0,0.00054794,120]
[322555216,1713052238624,-500.0,0.00054794,120]
[322555218,1713052238633,-500.0,0.00054794,120]
[322555220,1713052238643,-500.0,0.00054794,120]
[322555222,1713052238653,-1446.53,0.00054794,120]
[322555224,1713052238661,-500.0,0.00054794,120]
[322555225,1713052238670,-500.0,0.00054794,120]
[322555226,1713052238766,-375.43442124,0.00054794,120]
[322555227,1713052238775,-500.0,0.00054794,120]
[322555228,1713052238785,-500.0,0.00054794,120]
[322555229,1713052238794,-500.0,0.00054794,120]
[322555230,1713052238803,-500.0,0.00054794,120]
[322555231,1713052238812,-570.43178106,0.00054794,120]
[322555232,1713052238822,-500.0,0.00054794,120]
[322555233,1713052238831,-500.0,0.00054794,120]
[322555234,1713052238840,-500.0,0.00054794,120]
[322555235,1713052238849,-500.0,0.00054794,120]
[322555236,1713052238858,-500.0,0.00054794,120]
[322555237,1713052238868,-500.0,0.00054794,120]
[322555238,1713052238880,-500.4774247,0.00054794,120]
[322555239,1713052238889,-500.0,0.00054794,120]
[322555240,1713052238898,-429.33681034,0.00054794,120]
[322555241,1713052238907,-500.0,0.00054794,120]
[322555242,1713052238917,-500.0,0.00054794,120]
[322555243,1713052238927,-500.0,0.00054794,120]
[322555244,1713052238936,-500.0,0.00054794,120]
[322555245,1713052238946,-500.0,0.00054794,120]
[322555246,1713052238955,-500.0,0.00054794,120]
[322555247,1713052238966,-500.0,0.00054794,120]
[322555248,1713052238975,-500.0,0.00054794,120]
[322555249,1713052238984,-421.71566501,0.00054794,120]
[322555250,1713052238993,-518.16411706,0.00054794,120]
[322555251,1713052239003,-526.3860513,0.00054794,120]
[322555253,1713052239013,-500.0,0.00054794,120]
[322555255,1713052239023,-500.0,0.00054794,120]
[322555258,1713052239032,-500.0,0.00054794,120]
[322555259,1713052239042,-905.78,0.00054794,120]
[322555261,1713052239051,-500.0,0.00054794,120]
[322555263,1713052239060,-500.0,0.00054794,120]
[322555265,1713052239070,-500.0,0.00054794,120]
[322555267,1713052239079,-502.09780536,0.00054794,120]
[322555269,1713052239089,-500.0,0.00054794,120]
[322555271,1713052239098,-1476.36,0.00054794,120]
[322555273,1713052239107,-500.0,0.00054794,120]
[322555275,1713052239116,-500.0,0.00054794,120]
[322555277,1713052239125,-500.0,0.00054794,120]
[322555279,1713052239134,-500.0,0.00054794,120]
[322555281,1713052239143,-500.0,0.00054794,120]
[322555283,1713052239152,-500.0,0.00054794,120]
[322555285,1713052239161,-510.51005403,0.00054794,120]
[322555287,1713052239171,-500.0,0.00054794,120]
[322555289,1713052239180,-500.0,0.00054794,120]
[322555291,1713052239190,-500.0,0.00054794,120]
[322555293,1713052239199,-500.0,0.00054794,120]
[322555295,1713052239208,-1215.01,0.00054794,120]
[322555297,1713052239217,-500.0,0.00054794,120]
[322555299,1713052239225,-500.0,0.00054794,120]
[322555301,1713052239235,-539.51,0.00054794,120]
[322555302,1713052239244,-500.0,0.00054794,120]
[322555304,1713052239254,-500.0,0.00054794,120]
[322555306,1713052239263,-500.0,0.00054794,120]
[322555308,1713052239272,-500.0,0.00054794,120]
[322555310,1713052239281,-500.0,0.00054794,120]
[322555312,1713052239290,-1387.4,0.00054794,120]
[322555314,1713052239299,-518.86018913,0.00054794,120]
[322555316,1713052239308,-3285.83,0.00054794,120]
[322555318,1713052239317,-500.0,0.00054794,120]
[322555320,1713052239326,-500.0,0.00054794,120]
[322555322,1713052239335,-500.0,0.00054794,120]
[322555324,1713052239345,-500.0,0.00054794,120]
[322555326,1713052239354,-500.0,0.00054794,120]
[322555328,1713052239363,-500.0,0.00054794,120]
[322555330,1713052239372,-500.0,0.00054794,120]
[322555332,1713052239381,-199.33500442,0.00054794,120]
[322555334,1713052239390,-500.0,0.00054794,120]
[322555336,1713052239399,-500.0,0.00054794,120]
[322555338,1713052239408,-500.0,0.00054794,120]
[322555341,1713052239417,-500.0,0.00054794,120]
[322555343,1713052239426,-500.0,0.00054794,120]
[322555346,1713052239435,-2572.36,0.00054794,120]
[322555349,1713052239444,-500.0,0.00054794,120]
[322555352,1713052239453,-500.0,0.00054794,120]
[322555355,1713052239462,-500.0,0.00054794,120]
[322555358,1713052239471,-500.0,0.00054794,120]
[322555361,1713052239481,-500.0,0.00054794,120]
[322555364,1713052239490,-500.0,0.00054794,120]
[322555367,1713052239500,-500.0,0.00054794,120]
[322555370,1713052239510,-557.83602978,0.00054794,120]
[322555373,1713052239519,-500.0,0.00054794,120]
[322555377,1713052239528,-565.71,0.00054794,120]
[322555381,1713052239537,-645.99,0.00054794,120]
[322555384,1713052239546,-500.0,0.00054794,120]
[322555387,1713052239555,-843.28,0.00054794,120]
[322555390,1713052239565,-500.0,0.00054794,120]
[322555393,1713052239574,-500.0,0.00054794,120]
[322555395,1713052239583,-500.0,0.00054794,120]
[322555398,1713052239591,-500.0,0.00054794,120]
[322555401,1713052239600,-500.0,0.00054794,120]
[322555403,1713052239609,-500.0,0.00054794,120]
[322555406,1713052239618,-677.28,0.00054794,120]
[322555409,1713052239627,-1000.0,0.00054794,2]
[322555412,1713052239636,-849.91962565,0.00054794,2]
[322555415,1713052239645,-500.0,0.00054794,120]
[322555418,1713052239654,-530.48,0.00054794,120]
[322555421,1713052239663,-500.0,0.00054794,120]
[322555424,1713052239672,-500.0,0.00054794,120]
[322555427,1713052239681,-197.06902276,0.00054794,120]
[322555430,1713052239691,-500.0,0.00054794,120]
[322555433,1713052239699,-500.0,0.00054794,120]
[322555436,1713052239708,-500.0,0.00054794,120]
[322555439,1713052239718,-500.0,0.00054794,120]
[322555442,1713052239728,-500.0,0.00054794,120]
[322555445,1713052239739,-500.0,0.00054794,120]
[322555448,1713052239749,-500.0,0.00054794,120]
[322555451,1713052239763,-500.0,0.00054794,120]
[322555454,1713052239774,-500.0,0.00054794,120]
[322555457,1713052239785,-500.0,0.00054794,120]
[322555460,1713052239796,-500.0,0.00054794,120]
[322555463,1713052239807,-610.21924403,0.00054794,120]
[322555466,1713052239817,-1049.62,0.00054794,120]
[322555469,1713052239827,-500.0,0.00054794,120]
[322555472,1713052239837,-500.0,0.00054794,120]
[322555474,1713052239847,-500.0,0.00054794,7]
[322555477,1713052239856,-500.0,0.00054794,120]
[322555481,1713052239869,-500.0,0.00054794,120]
[322555485,1713052239879,-500.0,0.00054794,120]
[322555486,1713052239889,-500.0,0.00054794,120]
[322555489,1713052239898,-500.0,0.00054794,120]
[322555492,1713052239908,-345.51279381,0.00054794,120]
[322555495,1713052239917,-500.0,0.00054794,120]
[322555498,1713052239926,-500.0,0.00054794,120]
[322555501,1713052239936,-500.0,0.00054794,120]
[322555504,1713052239946,-500.0,0.00054794,120]
[322555507,1713052239957,-500.0,0.00054794,120]
[322555510,1713052239966,-500.0,0.00054794,120]
[322555513,1713052239975,-500.0,0.00054794,120]
[322555516,1713052239985,-500.0,0.00054794,120]
[322555519,1713052239995,-500.0,0.00054794,120]
[322555522,1713052240006,-260.33821339,0.00054794,120]
[322555525,1713052240018,-500.0,0.00054794,120]
[322555528,1713052240027,-500.0,0.00054794,120]
[322555531,1713052240036,-500.0,0.00054794,120]
[322555534,1713052240045,-500.0,0.00054794,120]
[322555537,1713052240055,-500.0,0.00054794,120]
[322555540,1713052240064,-162.66823247,0.00054794,120]
[322555544,1713052240079,-337.33176753,0.00054794,120]
[322555547,1713052240089,-500.0,0.00054794,120]
[322555549,1713052240099,-500.0,0.00054794,120]
[322555553,1713052240108,-500.0,0.00054794,120]
[322555555,1713052240117,-1550.48,0.00054794,120]
[322555558,1713052240126,-500.0,0.00054794,120]
[322555561,1713052240136,-500.0,0.00054794,120]
[322555564,1713052240145,-500.0,0.00054794,120]
[322555567,1713052240154,-539.79423866,0.00054794,120]
[322555570,1713052240164,-500.0,0.00054794,120]
[322555573,1713052240173,-500.0,0.00054794,120]
[322555575,1713052240182,-500.0,0.00054794,120]
[322555577,1713052240191,-516.70809908,0.00054794,120]
[322555579,1713052240201,-500.0,0.00054794,120]
[322555581,1713052240210,-500.70531605,0.00054794,120]
[322555583,1713052240219,-500.0,0.00054794,120]
[322555586,1713052240229,-500.0,0.00054794,120]
[322555589,1713052240238,-383.11939326,0.00054794,120]
[322555600,1713052240288,-116.88060674,0.00054794,120]
[322555603,1713052240297,-500.0,0.00054794,120]
[322555606,1713052240307,-500.0,0.00054794,120]
[322555609,1713052240317,-500.0,0.00054794,120]
[322555612,1713052240326,-500.0,0.00054794,120]
[322555615,1713052240335,-500.0,0.00054794,120]